[Event "*** Titled Tuesday Blitz"]
[Site "Chess.com"]
[Date "2020.10.20"]
[Round "8"]
[White "mr65"]
[Black "niki_2003"]
[Result "1-0"]
[WhiteElo "2160"]
[BlackElo "1842"]
[TimeControl "180+1"]
[EndTime "11:33:45 PDT"]
[Termination "mr65 won by resignation"]

1. e4 {[%clk 0:03:00.9]} 1... c5 {[%clk 0:02:53.7]} 2. Nf3 {[%clk 0:02:59.8]}
2... d6 {[%clk 0:02:54]} 3. Nc3 {[%clk 0:02:59.7]} 3... Nf6 {[%clk 0:02:53.1]}
4. e5 {[%clk 0:02:59.6]} 4... dxe5 {[%clk 0:02:50.9]} 5. Nxe5 {[%clk 0:02:59.5]}
5... g6 {[%clk 0:02:51.6]} 6. g3 {[%clk 0:02:58.3]} 6... Bg7 {[%clk 0:02:52]} 7.
Bg2 {[%clk 0:02:58.1]} 7... O-O {[%clk 0:02:50.5]} 8. O-O {[%clk 0:02:56.6]}
8... Qc7 {[%clk 0:02:51.1]} 9. Nc4 {[%clk 0:02:53.8]} 9... a6 {[%clk 0:02:49.1]}
10. a4 {[%clk 0:02:52.7]} 10... Nc6 {[%clk 0:02:47.8]} 11. h3 {[%clk 0:02:49.5]}
11... Be6 {[%clk 0:02:47.3]} 12. d3 {[%clk 0:02:49]} 12... Bxc4 {[%clk
0:02:45.3]} 13. dxc4 {[%clk 0:02:47.9]} 13... Na5 {[%clk 0:02:42.1]} 14. Nd5
{[%clk 0:02:43.5]} 14... Nxd5 {[%clk 0:02:33.6]} 15. cxd5 {[%clk 0:02:42.8]}
15... Rfd8 {[%clk 0:02:32.6]} 16. Bf4 {[%clk 0:02:34.3]} 16... Qd7 {[%clk
0:02:25.4]} 17. b3 {[%clk 0:02:30.7]} 17... Bxa1 {[%clk 0:02:24.7]} 18. Qxa1
{[%clk 0:02:30.1]} 18... b5 {[%clk 0:02:18.1]} 19. Qc3 {[%clk 0:02:23.4]} 19...
b4 {[%clk 0:02:14.2]} 20. Qxc5 {[%clk 0:02:20.7]} 20... Nb7 {[%clk 0:02:08.4]}
21. Qxb4 {[%clk 0:02:19.6]} 21... a5 {[%clk 0:02:09]} 22. Qd4 {[%clk 0:02:16.1]}
22... e6 {[%clk 0:01:56.5]} 23. c4 {[%clk 0:02:10.2]} 23... exd5 {[%clk
0:01:53.2]} 24. Bxd5 {[%clk 0:02:09.1]} 24... Rac8 {[%clk 0:01:47.7]} 25. Qf6
{[%clk 0:02:03]} 25... Nd6 {[%clk 0:01:26.6]} 26. Be5 {[%clk 0:01:54.9]} 1-0

[Event "*** Titled Tuesday Blitz"]
[Site "Chess.com"]
[Date "2020.10.20"]
[Round "8"]
[White "gusmaster2262"]
[Black "Wilver92"]
[Result "1-0"]
[WhiteElo "2183"]
[BlackElo "2390"]
[TimeControl "180+1"]
[EndTime "11:33:59 PDT"]
[Termination "gusmaster2262 won by resignation"]

1. d4 {[%clk 0:03:00.9]} 1... e6 {[%clk 0:03:00.7]} 2. c4 {[%clk 0:03:00.6]}
2... Nf6 {[%clk 0:03:01.4]} 3. Nf3 {[%clk 0:02:59.1]} 3... d5 {[%clk 0:03:02.3]}
4. Nc3 {[%clk 0:02:56.6]} 4... Be7 {[%clk 0:03:01.8]} 5. Bf4 {[%clk 0:02:55.9]}
5... O-O {[%clk 0:03:00.1]} 6. e3 {[%clk 0:02:55.9]} 6... Ne4 {[%clk 0:02:58.1]}
7. Nxe4 {[%clk 0:02:51.7]} 7... dxe4 {[%clk 0:02:58.6]} 8. Nd2 {[%clk
0:02:52.2]} 8... f5 {[%clk 0:02:58.2]} 9. Be2 {[%clk 0:02:47]} 9... Bd6 {[%clk
0:02:58]} 10. Bxd6 {[%clk 0:02:43.3]} 10... cxd6 {[%clk 0:02:58.4]} 11. O-O
{[%clk 0:02:43.7]} 11... Rf6 {[%clk 0:02:57.6]} 12. b4 {[%clk 0:02:38.4]} 12...
d5 {[%clk 0:02:53.3]} 13. b5 {[%clk 0:02:35.2]} 13... Rh6 {[%clk 0:02:48.9]} 14.
Qb3 {[%clk 0:02:31]} 14... Qd6 {[%clk 0:02:42.7]} 15. h3 {[%clk 0:02:26.6]}
15... Nd7 {[%clk 0:02:38.7]} 16. Rfc1 {[%clk 0:02:18.9]} 16... g5 {[%clk
0:02:34.9]} 17. c5 {[%clk 0:02:15]} 17... Qe7 {[%clk 0:02:30.8]} 18. c6 {[%clk
0:02:10.9]} 18... bxc6 {[%clk 0:02:23.6]} 19. bxc6 {[%clk 0:02:07.7]} 19... Nf6
{[%clk 0:02:21.6]} 20. c7 {[%clk 0:02:04.2]} 20... g4 {[%clk 0:02:16.1]} 21. Qb8
{[%clk 0:02:00.4]} 21... Nd7 {[%clk 0:01:43.1]} 22. Qxa8 {[%clk 0:01:55.8]}
22... Qf8 {[%clk 0:01:37]} 23. Ba6 {[%clk 0:01:49.4]} 23... Bxa6 {[%clk
0:01:32.5]} 24. c8=Q {[%clk 0:01:43.4]} 24... Bxc8 {[%clk 0:01:31.4]} 25. Rxc8
{[%clk 0:01:38.4]} 25... Rf6 {[%clk 0:01:30.8]} 26. Rxf8+ {[%clk 0:01:36.9]}
26... Nxf8 {[%clk 0:01:30.7]} 27. Qxa7 {[%clk 0:01:34.3]} 1-0

[Event "*** Titled Tuesday Blitz"]
[Site "Chess.com"]
[Date "2020.10.20"]
[Round "8"]
[White "bascheyaro"]
[Black "szachuspl"]
[Result "1-0"]
[WhiteElo "2741"]
[BlackElo "2537"]
[TimeControl "180+1"]
[EndTime "11:34:04 PDT"]
[Termination "bascheyaro won by checkmate"]

1. d4 {[%clk 0:03:00.9]} 1... Nf6 {[%clk 0:02:59.5]} 2. Bf4 {[%clk 0:03:00.4]}
2... g6 {[%clk 0:02:56.4]} 3. Nc3 {[%clk 0:02:58.2]} 3... d5 {[%clk 0:02:56.2]}
4. Nb5 {[%clk 0:02:57.5]} 4... Na6 {[%clk 0:02:55.6]} 5. e3 {[%clk 0:02:57.5]}
5... c6 {[%clk 0:02:54.9]} 6. Na3 {[%clk 0:02:55.6]} 6... Nc7 {[%clk 0:02:54.6]}
7. Nf3 {[%clk 0:02:54.5]} 7... Bg7 {[%clk 0:02:54.6]} 8. c4 {[%clk 0:02:54.3]}
8... O-O {[%clk 0:02:53.7]} 9. Be2 {[%clk 0:02:53.5]} 9... Bg4 {[%clk
0:02:53.2]} 10. O-O {[%clk 0:02:52.5]} 10... Bxf3 {[%clk 0:02:53.2]} 11. Bxf3
{[%clk 0:02:52.7]} 11... e6 {[%clk 0:02:50.5]} 12. Qb3 {[%clk 0:02:51.6]} 12...
Rb8 {[%clk 0:02:44.7]} 13. Rfd1 {[%clk 0:02:47.7]} 13... Nd7 {[%clk 0:02:44.2]}
14. Rac1 {[%clk 0:02:43]} 14... a6 {[%clk 0:02:42.5]} 15. cxd5 {[%clk
0:02:42.9]} 15... exd5 {[%clk 0:02:33.7]} 16. Bxc7 {[%clk 0:02:42.9]} 16... Qxc7
{[%clk 0:02:33.5]} 17. Bxd5 {[%clk 0:02:43]} 17... Qd8 {[%clk 0:02:29.6]} 18.
Bf3 {[%clk 0:02:42.4]} 18... Kh8 {[%clk 0:02:28.1]} 19. Nc4 {[%clk 0:02:42]}
19... Qe7 {[%clk 0:02:26.6]} 20. Nb6 {[%clk 0:02:38.4]} 20... Nxb6 {[%clk
0:02:24.2]} 21. Qxb6 {[%clk 0:02:39.3]} 21... Rbd8 {[%clk 0:02:23.1]} 22. a3
{[%clk 0:02:37.8]} 22... f5 {[%clk 0:02:19.2]} 23. d5 {[%clk 0:02:31.2]} 23...
cxd5 {[%clk 0:02:10.9]} 24. Rxd5 {[%clk 0:02:30]} 24... Rxd5 {[%clk 0:02:10.2]}
25. Bxd5 {[%clk 0:02:30.9]} 25... Rd8 {[%clk 0:02:09]} 26. Bxb7 {[%clk
0:02:22.3]} 26... Qd7 {[%clk 0:01:57.1]} 27. Bxa6 {[%clk 0:02:13.2]} 27... Be5
{[%clk 0:01:53.4]} 28. g3 {[%clk 0:02:10]} 28... Rb8 {[%clk 0:01:51.8]} 29. Qc5
{[%clk 0:01:53.9]} 29... Bxb2 {[%clk 0:01:49.2]} 30. Rb1 {[%clk 0:01:54]} 30...
Qd2 {[%clk 0:01:35.5]} 31. a4 {[%clk 0:01:32.8]} 31... Rb3 {[%clk 0:01:27]} 32.
Qf8# {[%clk 0:01:31.6]} 1-0

[Event "*** Titled Tuesday Blitz"]
[Site "Chess.com"]
[Date "2020.10.20"]
[Round "8"]
[White "MFBerna"]
[Black "Berardino"]
[Result "0-1"]
[WhiteElo "2427"]
[BlackElo "2589"]
[TimeControl "180+1"]
[EndTime "11:34:07 PDT"]
[Termination "Berardino won on time"]

1. b3 {[%clk 0:03:00.9]} 1... c5 {[%clk 0:02:55.7]} 2. Nf3 {[%clk 0:02:59.8]}
2... d6 {[%clk 0:02:53.1]} 3. Bb2 {[%clk 0:02:58.9]} 3... e5 {[%clk 0:02:52.9]}
4. c4 {[%clk 0:02:55.2]} 4... Nc6 {[%clk 0:02:52.9]} 5. Nc3 {[%clk 0:02:49]}
5... f5 {[%clk 0:02:52.8]} 6. g3 {[%clk 0:02:43.2]} 6... Nf6 {[%clk 0:02:52.7]}
7. Bg2 {[%clk 0:02:42.7]} 7... g6 {[%clk 0:02:50.8]} 8. d3 {[%clk 0:02:32.8]}
8... Bg7 {[%clk 0:02:51]} 9. O-O {[%clk 0:02:31.4]} 9... O-O {[%clk 0:02:51.4]}
10. a3 {[%clk 0:02:27.6]} 10... h6 {[%clk 0:02:49.1]} 11. Rb1 {[%clk 0:02:08.8]}
11... Be6 {[%clk 0:02:48.8]} 12. Qd2 {[%clk 0:00:05.5]} 12... Rc8 {[%clk
0:02:41.6]} 13. Rfe1 {[%clk 0:00:05]} 13... Kh7 {[%clk 0:02:37.5]} 14. h3 {[%clk
0:00:04.2]} 14... Qd7 {[%clk 0:02:37]} 15. Kh2 {[%clk 0:00:03.6]} 15... Qf7
{[%clk 0:02:22.3]} 16. e3 {[%clk 0:00:03.6]} 16... g5 {[%clk 0:02:19]} 0-1

[Event "*** Titled Tuesday Blitz"]
[Site "Chess.com"]
[Date "2020.10.20"]
[Round "8"]
[White "mamey78"]
[Black "NotFischer"]
[Result "1-0"]
[WhiteElo "2407"]
[BlackElo "2257"]
[TimeControl "180+1"]
[EndTime "11:34:20 PDT"]
[Termination "mamey78 won by resignation"]

1. e4 {[%clk 0:03:00.9]} 1... d5 {[%clk 0:02:59.7]} 2. exd5 {[%clk 0:03:00.4]}
2... Nf6 {[%clk 0:02:59.1]} 3. Nf3 {[%clk 0:02:59.8]} 3... Bg4 {[%clk
0:02:59.2]} 4. d4 {[%clk 0:02:59.6]} 4... Qxd5 {[%clk 0:02:58.9]} 5. Be2 {[%clk
0:02:58.1]} 5... Nc6 {[%clk 0:02:58.7]} 6. h3 {[%clk 0:02:58.1]} 6... Bxf3
{[%clk 0:02:54.2]} 7. Bxf3 {[%clk 0:02:56.9]} 7... Qd7 {[%clk 0:02:55.1]} 8. d5
{[%clk 0:02:49.8]} 8... Ne5 {[%clk 0:02:54]} 9. c4 {[%clk 0:02:48.7]} 9... Nxc4
{[%clk 0:02:48.3]} 10. O-O {[%clk 0:02:46.8]} 10... O-O-O {[%clk 0:02:45]} 11.
Nc3 {[%clk 0:02:39]} 11... Nb6 {[%clk 0:02:43.6]} 12. Qb3 {[%clk 0:02:30.6]}
12... Rg8 {[%clk 0:02:25.6]} 13. Bg5 {[%clk 0:02:15.1]} 13... Nfxd5 {[%clk
0:01:54.4]} 14. Rfd1 {[%clk 0:02:07]} 14... c6 {[%clk 0:01:54.7]} 15. a4 {[%clk
0:01:56]} 15... f6 {[%clk 0:01:50.6]} 16. a5 {[%clk 0:01:51.7]} 16... Kb8 {[%clk
0:00:41.9]} 17. axb6 {[%clk 0:01:48]} 17... fxg5 {[%clk 0:00:41.3]} 18. Nxd5
{[%clk 0:01:40.7]} 18... cxd5 {[%clk 0:00:39.9]} 19. Rxd5 {[%clk 0:01:39.1]} 1-0

[Event "*** Titled Tuesday Blitz"]
[Site "Chess.com"]
[Date "2020.10.20"]
[Round "8"]
[White "LubovMarkelova"]
[Black "TurboSteen"]
[Result "1-0"]
[WhiteElo "2237"]
[BlackElo "2038"]
[TimeControl "180+1"]
[EndTime "11:34:44 PDT"]
[Termination "LubovMarkelova won by resignation"]

1. Nf3 {[%clk 0:02:45.4]} 1... c5 {[%clk 0:02:54.8]} 2. c4 {[%clk 0:02:43.9]}
2... Nc6 {[%clk 0:02:52.3]} 3. Nc3 {[%clk 0:02:43.5]} 3... e5 {[%clk 0:02:47.9]}
4. g3 {[%clk 0:02:36]} 4... g6 {[%clk 0:02:46.2]} 5. Bg2 {[%clk 0:02:32.7]} 5...
d6 {[%clk 0:02:46.2]} 6. a3 {[%clk 0:02:32.9]} 6... Be6 {[%clk 0:02:44.9]} 7. d3
{[%clk 0:02:31.7]} 7... Bg7 {[%clk 0:02:43]} 8. b4 {[%clk 0:02:09.8]} 8... Nge7
{[%clk 0:02:04.9]} 9. b5 {[%clk 0:01:51.7]} 9... Nd4 {[%clk 0:01:49.5]} 10. Ng5
{[%clk 0:01:51]} 10... Bd7 {[%clk 0:01:46.2]} 11. Bxb7 {[%clk 0:01:50.2]} 11...
h6 {[%clk 0:01:41.7]} 12. Nge4 {[%clk 0:01:38.3]} 12... Bh3 {[%clk 0:01:32.9]}
13. Bxa8 {[%clk 0:01:24.8]} 13... Qxa8 {[%clk 0:01:29.7]} 14. Nxd6+ {[%clk
0:01:21.3]} 14... Kf8 {[%clk 0:01:24]} 15. f3 {[%clk 0:01:18.9]} 15... h5 {[%clk
0:01:03.8]} 16. Be3 {[%clk 0:01:16.9]} 16... h4 {[%clk 0:00:55.5]} 17. Bxd4
{[%clk 0:01:16.2]} 17... exd4 {[%clk 0:00:52.4]} 18. Nce4 {[%clk 0:01:16.3]}
18... f5 {[%clk 0:00:43.8]} 19. Ng5 {[%clk 0:01:15.6]} 19... Bg2 {[%clk
0:00:40.3]} 20. Rg1 {[%clk 0:01:10.8]} 1-0

[Event "*** Titled Tuesday Blitz"]
[Site "Chess.com"]
[Date "2020.10.20"]
[Round "8"]
[White "Ural_bogatyr"]
[Black "BJthechessgod"]
[Result "1-0"]
[WhiteElo "2362"]
[BlackElo "2206"]
[TimeControl "180+1"]
[EndTime "11:35:02 PDT"]
[Termination "Ural_bogatyr won by checkmate"]

1. e4 {[%clk 0:02:57.3]} 1... c5 {[%clk 0:02:59.9]} 2. Nf3 {[%clk 0:02:57.1]}
2... e6 {[%clk 0:03:00.2]} 3. c3 {[%clk 0:02:57.1]} 3... Nf6 {[%clk 0:02:59.3]}
4. e5 {[%clk 0:02:57.5]} 4... Nd5 {[%clk 0:02:59.7]} 5. d4 {[%clk 0:02:58.4]}
5... cxd4 {[%clk 0:03:00]} 6. Qxd4 {[%clk 0:02:59.3]} 6... Nc6 {[%clk
0:02:58.3]} 7. Qe4 {[%clk 0:02:59.8]} 7... Be7 {[%clk 0:02:57.3]} 8. Bd3 {[%clk
0:02:52.7]} 8... h6 {[%clk 0:02:56.1]} 9. O-O {[%clk 0:02:51.9]} 9... d6 {[%clk
0:02:54]} 10. Rd1 {[%clk 0:02:47]} 10... dxe5 {[%clk 0:02:53.4]} 11. Nxe5 {[%clk
0:02:45.1]} 11... Nxe5 {[%clk 0:02:53.7]} 12. Qxe5 {[%clk 0:02:46]} 12... Bf6
{[%clk 0:02:54]} 13. Qe4 {[%clk 0:02:39.8]} 13... Bd7 {[%clk 0:02:51.4]} 14. c4
{[%clk 0:01:59.4]} 14... Nb4 {[%clk 0:02:32.4]} 15. Nc3 {[%clk 0:01:57.2]} 15...
Bc6 {[%clk 0:02:30.9]} 16. Nd5 {[%clk 0:01:47.3]} 16... Nxd5 {[%clk 0:02:25.5]}
17. Bc2 {[%clk 0:01:37.6]} 17... Rc8 {[%clk 0:02:04]} 18. cxd5 {[%clk
0:01:34.4]} 18... Bxd5 {[%clk 0:02:01.8]} 19. Ba4+ {[%clk 0:01:32]} 19... Kf8
{[%clk 0:01:53.8]} 20. Qe2 {[%clk 0:01:25.2]} 20... Qa5 {[%clk 0:01:50.9]} 21.
Bc2 {[%clk 0:01:16]} 21... Qc7 {[%clk 0:01:27.3]} 22. Bd3 {[%clk 0:01:09.3]}
22... Qc6 {[%clk 0:01:24.4]} 23. Bb5 {[%clk 0:01:03.4]} 23... Qc2 {[%clk
0:01:19]} 24. Bd2 {[%clk 0:00:50.9]} 24... a6 {[%clk 0:01:08.2]} 25. Rac1 {[%clk
0:00:45.8]} 25... Qg6 {[%clk 0:01:01.7]} 26. Rxc8+ {[%clk 0:00:42.4]} 26... Ke7
{[%clk 0:01:02.2]} 27. Bb4# {[%clk 0:00:43]} 1-0

[Event "*** Titled Tuesday Blitz"]
[Site "Chess.com"]
[Date "2020.10.20"]
[Round "8"]
[White "Evachess2006"]
[Black "Klavdia_Nik"]
[Result "0-1"]
[WhiteElo "1632"]
[BlackElo "2076"]
[TimeControl "180+1"]
[EndTime "11:35:03 PDT"]
[Termination "Klavdia_Nik won on time"]

1. e4 {[%clk 0:03:00.9]} 1... b6 {[%clk 0:02:53.3]} 2. d4 {[%clk 0:02:47]} 2...
Bb7 {[%clk 0:02:50.3]} 3. Nc3 {[%clk 0:02:45.5]} 3... g6 {[%clk 0:02:49]} 4. Nf3
{[%clk 0:02:29]} 4... Bg7 {[%clk 0:02:42.5]} 5. Bd3 {[%clk 0:02:28.6]} 5... d6
{[%clk 0:02:37.7]} 6. O-O {[%clk 0:02:17.7]} 6... Nd7 {[%clk 0:02:35.6]} 7. Be3
{[%clk 0:02:01.5]} 7... c5 {[%clk 0:02:32.8]} 8. dxc5 {[%clk 0:01:39]} 8... bxc5
{[%clk 0:02:12.3]} 9. Rb1 {[%clk 0:01:21.3]} 9... a5 {[%clk 0:02:10.4]} 10. Nd5
{[%clk 0:01:09.9]} 10... Ngf6 {[%clk 0:02:00.3]} 11. Nxf6+ {[%clk 0:00:56.5]}
11... Nxf6 {[%clk 0:01:45.3]} 12. e5 {[%clk 0:00:30.4]} 12... Ng4 {[%clk
0:01:26.6]} 13. exd6 {[%clk 0:00:14.9]} 13... exd6 {[%clk 0:01:24.8]} 14. h3
{[%clk 0:00:14.9]} 14... Nxe3 {[%clk 0:01:23.4]} 15. fxe3 {[%clk 0:00:12.6]}
15... O-O {[%clk 0:01:23.4]} 16. Qe2 {[%clk 0:00:06.2]} 16... d5 {[%clk
0:01:21.3]} 0-1

[Event "*** Titled Tuesday Blitz"]
[Site "Chess.com"]
[Date "2020.10.20"]
[Round "8"]
[White "Brave_spirit12"]
[Black "SophieNikoladze"]
[Result "1-0"]
[WhiteElo "2475"]
[BlackElo "2294"]
[TimeControl "180+1"]
[EndTime "11:35:06 PDT"]
[Termination "Brave_spirit12 won by resignation"]

1. e4 {[%clk 0:03:00.6]} 1... d6 {[%clk 0:02:59.2]} 2. d4 {[%clk 0:03:00.5]}
2... Nf6 {[%clk 0:02:57.4]} 3. Nc3 {[%clk 0:02:59.1]} 3... Nbd7 {[%clk
0:02:56.2]} 4. f4 {[%clk 0:02:56.6]} 4... e5 {[%clk 0:02:55.4]} 5. Nf3 {[%clk
0:02:56.8]} 5... Be7 {[%clk 0:02:54.9]} 6. Be2 {[%clk 0:02:47.7]} 6... O-O
{[%clk 0:02:53.8]} 7. O-O {[%clk 0:02:46.8]} 7... c6 {[%clk 0:02:50.6]} 8. Kh1
{[%clk 0:02:33.3]} 8... Qc7 {[%clk 0:02:49]} 9. d5 {[%clk 0:02:14.9]} 9... cxd5
{[%clk 0:02:47.1]} 10. exd5 {[%clk 0:02:09.3]} 10... a6 {[%clk 0:02:29.8]} 11.
fxe5 {[%clk 0:02:01.1]} 11... dxe5 {[%clk 0:02:26.7]} 12. Bg5 {[%clk 0:02:00.3]}
12... b5 {[%clk 0:02:17.8]} 13. Ne4 {[%clk 0:01:55.4]} 13... Nxe4 {[%clk
0:02:06.1]} 14. Bxe7 {[%clk 0:01:56.3]} 14... Qb6 {[%clk 0:02:04.1]} 15. Bxf8
{[%clk 0:01:43.3]} 15... Nxf8 {[%clk 0:01:52.1]} 16. Qe1 {[%clk 0:01:35.6]}
16... f6 {[%clk 0:01:52]} 17. Bd3 {[%clk 0:01:30.6]} 17... Nd6 {[%clk 0:01:51]}
18. Nd2 {[%clk 0:01:22.5]} 18... Bb7 {[%clk 0:01:49.1]} 19. Ne4 {[%clk
0:01:20.2]} 19... Nxe4 {[%clk 0:01:46]} 20. Bxe4 {[%clk 0:01:21.1]} 20... Qd4
{[%clk 0:01:42.6]} 21. c3 {[%clk 0:01:14.3]} 21... Qc5 {[%clk 0:01:42.5]} 22.
Rd1 {[%clk 0:01:10.3]} 22... Qd6 {[%clk 0:01:40.7]} 23. b3 {[%clk 0:01:07.7]}
23... Rc8 {[%clk 0:01:40]} 24. Rc1 {[%clk 0:01:02.9]} 24... Rc5 {[%clk
0:01:36.3]} 25. c4 {[%clk 0:01:01.9]} 25... b4 {[%clk 0:01:29.5]} 26. Qxb4
{[%clk 0:00:35.9]} 26... Bc8 {[%clk 0:01:22.8]} 27. Qa3 {[%clk 0:00:33.5]} 27...
g6 {[%clk 0:01:18.3]} 28. b4 {[%clk 0:00:32]} 1-0

[Event "*** Titled Tuesday Blitz"]
[Site "Chess.com"]
[Date "2020.10.20"]
[Round "8"]
[White "AustrianFalcon"]
[Black "GregShahade"]
[Result "0-1"]
[WhiteElo "2458"]
[BlackElo "2662"]
[TimeControl "180+1"]
[EndTime "11:35:08 PDT"]
[Termination "GregShahade won on time"]

1. e4 {[%clk 0:02:55.3]} 1... e5 {[%clk 0:03:00]} 2. Nf3 {[%clk 0:02:51.5]} 2...
Nc6 {[%clk 0:03:00.1]} 3. Bb5 {[%clk 0:02:48.5]} 3... a6 {[%clk 0:02:58.1]} 4.
Ba4 {[%clk 0:02:47.4]} 4... Nf6 {[%clk 0:02:55.7]} 5. O-O {[%clk 0:02:47.3]}
5... Be7 {[%clk 0:02:55.4]} 6. Re1 {[%clk 0:02:42.3]} 6... b5 {[%clk 0:02:55.7]}
7. Bb3 {[%clk 0:02:42]} 7... O-O {[%clk 0:02:56.3]} 8. c3 {[%clk 0:02:40.9]}
8... d5 {[%clk 0:02:56.4]} 9. exd5 {[%clk 0:02:41.5]} 9... Nxd5 {[%clk
0:02:57.3]} 10. Nxe5 {[%clk 0:02:42.1]} 10... Nxe5 {[%clk 0:02:58.1]} 11. Rxe5
{[%clk 0:02:42.7]} 11... c6 {[%clk 0:02:58.8]} 12. d3 {[%clk 0:02:42.8]} 12...
Bd6 {[%clk 0:02:59.1]} 13. Re1 {[%clk 0:02:42.7]} 13... Bf5 {[%clk 0:02:59.8]}
14. Qf3 {[%clk 0:02:41.6]} 14... Re8 {[%clk 0:03:00.2]} 15. Rxe8+ {[%clk
0:02:31.7]} 15... Qxe8 {[%clk 0:03:01.1]} 16. Nd2 {[%clk 0:02:31.9]} 16... Qe1+
{[%clk 0:03:01.3]} 17. Nf1 {[%clk 0:02:32.4]} 17... Bg6 {[%clk 0:03:02.2]} 18.
g3 {[%clk 0:02:25.1]} 18... b4 {[%clk 0:03:02.1]} 19. c4 {[%clk 0:02:17.9]}
19... Nf6 {[%clk 0:03:02.4]} 20. Kg2 {[%clk 0:01:07.9]} 20... Re8 {[%clk
0:02:21.1]} 21. h3 {[%clk 0:00:30.4]} 21... Bc5 {[%clk 0:01:57.5]} 22. Be3
{[%clk 0:00:07.6]} 22... Qxa1 {[%clk 0:01:57.1]} 23. Bxc5 {[%clk 0:00:06.6]}
23... Qxb2 {[%clk 0:01:43.1]} 24. Bxb4 {[%clk 0:00:06.4]} 24... Qb1 {[%clk
0:01:38.1]} 0-1

[Event "*** Titled Tuesday Blitz"]
[Site "Chess.com"]
[Date "2020.10.20"]
[Round "8"]
[White "W_Amadeus"]
[Black "Anna_ChessMate"]
[Result "1-0"]
[WhiteElo "2743"]
[BlackElo "2546"]
[TimeControl "180+1"]
[EndTime "11:35:14 PDT"]
[Termination "W_Amadeus won by resignation"]

1. e4 {[%clk 0:03:00.9]} 1... c6 {[%clk 0:02:59.6]} 2. d4 {[%clk 0:03:00.4]}
2... d5 {[%clk 0:03:00.2]} 3. e5 {[%clk 0:03:00.9]} 3... Bf5 {[%clk 0:02:59.1]}
4. Nf3 {[%clk 0:03:00.7]} 4... e6 {[%clk 0:02:58.8]} 5. Be2 {[%clk 0:03:01.3]}
5... Nd7 {[%clk 0:02:59.4]} 6. O-O {[%clk 0:02:58.3]} 6... h6 {[%clk 0:02:59.9]}
7. a4 {[%clk 0:02:56.5]} 7... Ne7 {[%clk 0:02:59.3]} 8. a5 {[%clk 0:02:56.6]}
8... a6 {[%clk 0:02:59.9]} 9. b4 {[%clk 0:02:56.2]} 9... g5 {[%clk 0:02:57]} 10.
Nc3 {[%clk 0:02:51.4]} 10... Bg7 {[%clk 0:02:57.1]} 11. Na4 {[%clk 0:02:44.7]}
11... O-O {[%clk 0:02:56.6]} 12. Bd3 {[%clk 0:02:27.8]} 12... f6 {[%clk
0:02:48.6]} 13. exf6 {[%clk 0:02:23.5]} 13... Rxf6 {[%clk 0:02:45.9]} 14. Bxf5
{[%clk 0:02:11.8]} 14... exf5 {[%clk 0:02:44.6]} 15. Qd3 {[%clk 0:02:01.2]}
15... f4 {[%clk 0:02:42.9]} 16. Re1 {[%clk 0:01:53.1]} 16... Nf5 {[%clk
0:02:42.5]} 17. Ne5 {[%clk 0:01:33.8]} 17... Nxd4 {[%clk 0:02:02.9]} 18. Nxd7
{[%clk 0:01:20.7]} 18... Qxd7 {[%clk 0:02:01.9]} 19. Bb2 {[%clk 0:01:14.9]}
19... f3 {[%clk 0:01:12.5]} 20. Bxd4 {[%clk 0:01:08.6]} 20... Qg4 {[%clk
0:00:46.9]} 21. g3 {[%clk 0:01:08.4]} 1-0

[Event "*** Titled Tuesday Blitz"]
[Site "Chess.com"]
[Date "2020.10.20"]
[Round "8"]
[White "ScarpaChess"]
[Black "Zemerovv"]
[Result "0-1"]
[WhiteElo "2334"]
[BlackElo "2298"]
[TimeControl "180+1"]
[EndTime "11:35:16 PDT"]
[Termination "Zemerovv won by resignation"]

1. d4 {[%clk 0:02:58.9]} 1... g6 {[%clk 0:03:00.9]} 2. c4 {[%clk 0:02:58.4]}
2... Bg7 {[%clk 0:03:01.1]} 3. e4 {[%clk 0:02:58.1]} 3... d6 {[%clk 0:03:01.6]}
4. Be2 {[%clk 0:02:50.8]} 4... e5 {[%clk 0:02:59.5]} 5. Be3 {[%clk 0:02:50.8]}
5... Nc6 {[%clk 0:02:58.3]} 6. Nf3 {[%clk 0:02:30.2]} 6... Bg4 {[%clk
0:02:56.6]} 7. d5 {[%clk 0:02:30.3]} 7... Bxf3 {[%clk 0:02:53.1]} 8. Bxf3 {[%clk
0:02:31.2]} 8... Nd4 {[%clk 0:02:51.4]} 9. Bxd4 {[%clk 0:02:31.8]} 9... exd4
{[%clk 0:02:51.2]} 10. O-O {[%clk 0:02:28.8]} 10... c5 {[%clk 0:02:50.8]} 11.
Nd2 {[%clk 0:02:11.8]} 11... Ne7 {[%clk 0:02:49.6]} 12. Be2 {[%clk 0:02:12.2]}
12... O-O {[%clk 0:02:48.3]} 13. Bd3 {[%clk 0:02:12]} 13... f5 {[%clk
0:02:17.3]} 14. exf5 {[%clk 0:02:07]} 14... Nxf5 {[%clk 0:02:16.4]} 15. Bxf5
{[%clk 0:01:57.7]} 15... gxf5 {[%clk 0:02:11]} 16. Nf3 {[%clk 0:01:55.3]} 16...
Kh8 {[%clk 0:02:06.3]} 17. Qd3 {[%clk 0:01:49]} 17... Qf6 {[%clk 0:02:02]} 18.
Rae1 {[%clk 0:01:49.1]} 18... Rae8 {[%clk 0:02:00.5]} 19. Rxe8 {[%clk
0:01:49.2]} 19... Rxe8 {[%clk 0:02:00]} 20. Re1 {[%clk 0:01:49.8]} 20... Rxe1+
{[%clk 0:01:49.5]} 21. Nxe1 {[%clk 0:01:49]} 21... h6 {[%clk 0:01:39]} 22. b3
{[%clk 0:01:43.3]} 22... a6 {[%clk 0:01:37.5]} 23. Qe2 {[%clk 0:01:42.3]} 23...
Qe5 {[%clk 0:01:35.3]} 24. Qd2 {[%clk 0:01:15.2]} 24... Qe4 {[%clk 0:01:31.9]}
25. f3 {[%clk 0:01:01.5]} 25... Qb1 {[%clk 0:01:27.3]} 26. Kf2 {[%clk 0:00:57]}
26... Kh7 {[%clk 0:01:22.1]} 27. Qc2 {[%clk 0:00:53.8]} 27... Qxc2+ {[%clk
0:01:15.6]} 28. Nxc2 {[%clk 0:00:54.7]} 28... d3 {[%clk 0:01:12.2]} 29. Ne3
{[%clk 0:00:37.9]} 29... Bd4 {[%clk 0:01:11.2]} 30. g3 {[%clk 0:00:36.1]} 30...
d2 {[%clk 0:01:10]} 0-1

[Event "*** Titled Tuesday Blitz"]
[Site "Chess.com"]
[Date "2020.10.20"]
[Round "8"]
[White "glebus008"]
[Black "fabianvivasz"]
[Result "1-0"]
[WhiteElo "2346"]
[BlackElo "2425"]
[TimeControl "180+1"]
[EndTime "11:35:17 PDT"]
[Termination "glebus008 won by checkmate"]

1. e4 {[%clk 0:02:57.1]} 1... e5 {[%clk 0:02:54.9]} 2. Nf3 {[%clk 0:02:55.2]}
2... Nc6 {[%clk 0:02:51.1]} 3. d4 {[%clk 0:02:55.4]} 3... exd4 {[%clk
0:02:50.1]} 4. Bc4 {[%clk 0:02:54.2]} 4... Nf6 {[%clk 0:02:48.8]} 5. Ng5 {[%clk
0:02:50.6]} 5... Ne5 {[%clk 0:02:35.3]} 6. Bb3 {[%clk 0:02:49]} 6... h6 {[%clk
0:02:19.3]} 7. f4 {[%clk 0:02:48.3]} 7... hxg5 {[%clk 0:02:09.2]} 8. fxe5 {[%clk
0:02:49.2]} 8... Nh5 {[%clk 0:01:11]} 9. O-O {[%clk 0:02:32.3]} 9... d5 {[%clk
0:00:53.1]} 10. exd5 {[%clk 0:02:21.5]} 10... Bc5 {[%clk 0:00:35.3]} 11. Qf3
{[%clk 0:01:50.4]} 11... Qe7 {[%clk 0:00:14.3]} 12. d6 {[%clk 0:01:35.4]} 12...
d3+ {[%clk 0:00:05.4]} 13. Kh1 {[%clk 0:01:33]} 13... Qxe5 {[%clk 0:00:03.6]}
14. Qxf7+ {[%clk 0:01:20.8]} 14... Kd8 {[%clk 0:00:03.5]} 15. Bxg5+ {[%clk
0:01:11.6]} 15... Qxg5 {[%clk 0:00:02.5]} 16. dxc7# {[%clk 0:01:10.8]} 1-0